bitfinex/quotes_ETHUSD_20241104
["timestamp","ask_amount","ask_price","bid_price","bid_amount"]
[1730679047541,8.13966,2455.3,2455.0,0.84727899]
[1730679047748,4.47404,2455.3,2455.1,0.15859096]
[1730679047956,8.13965,2455.3,2455.1,0.15859096]
[1730679048161,4.47404,2455.3,2455.1,0.15859096]
[1730679048458,4.47404,2455.3,2455.0,1.00586995]
[1730679049232,4.47404,2455.3,2455.1,0.1401648]
[1730679049961,4.47404,2455.3,2455.1,0.29873907]
[1730679050170,3.66554,2455.3,2455.1,0.29873907]
[1730679051434,4.47383,2455.5,2455.1,1.00337064]
[1730679051640,3.66511,2455.6,2455.2,0.08145327]
[1730679051866,3.66511,2455.6,2455.3,0.14006397]
[1730679052053,3.66511,2455.6,2455.2,0.08145327]
[1730679052259,3.66511,2455.6,2455.4,0.1400102]
[1730679052652,3.66511,2455.6,2455.2,0.08145327]
[1730679052828,0.10181211,2455.6,2455.3,0.14005051]
[1730679053030,3.6653,2455.5,2455.1,0.32977717]
[1730679053230,3.6653,2455.5,2455.2,0.14010428]
[1730679054864,3.66553,2455.3,2455.2,0.14010428]
[1730679055030,4.47403,2455.3,2454.9,0.3295799]
[1730679055365,3.66584,2455.1,2454.8,0.58135457]
[1730679055570,3.66584,2455.1,2455.0,0.14021184]
[1730679055732,3.6657,2455.2,2454.9,0.14026563]
[1730679056048,3.6657,2455.2,2454.8,0.58135457]
[1730679056229,3.6657,2455.2,2454.9,0.14026563]
[1730679056428,4.47403,2455.3,2454.9,0.14026563]
[1730679056629,3.66575,2455.2,2454.9,0.14026563]
[1730679057966,3.6659,2455.1,2454.9,0.14026563]
[1730679060880,3.66598,2455.0,2454.9,0.14026563]
[1730679061473,4.47448,2455.0,2454.9,0.14026563]
[1730679061838,0.8085,2455.0,2454.9,0.14026563]
[1730679062247,4.47448,2455.0,2454.9,0.14026563]
[1730679062933,0.8085,2455.0,2454.9,0.14026563]
[1730679064138,4.47448,2455.0,2454.9,0.14026563]
[1730679064642,0.8085,2455.0,2454.9,0.14026563]
[1730679065431,3.6659,2455.1,2454.9,0.14026563]
[1730679066470,3.66546,2455.4,2455.0,0.25266305]
[1730679066732,3.66556,2455.3,2455.0,1.08680514]
[1730679066888,3.66545,2455.4,2455.0,0.31156314]
[1730679067176,0.8085,2455.5,2455.1,0.0814531]
[1730679067339,0.8085,2455.5,2455.1,0.4788754]
[1730679067340,3.66525,2455.5,2455.1,0.4788754]
[1730679067544,3.66525,2455.5,2455.2,0.14038333]
[1730679070277,7.33057,2455.5,2455.2,0.14038333]
[1730679070508,3.66525,2455.5,2455.2,0.14038333]
[1730679070893,3.6655,2455.4,2455.2,0.14038333]
[1730679071097,3.66553,2455.3,2455.2,0.14038333]
[1730679071282,3.66553,2455.3,2455.0,0.1712]
[1730679071673,4.4328,2455.4,2455.1,0.14032953]
[1730679072084,3.66556,2455.3,2455.1,0.14032953]
[1730679072684,4.4328,2455.4,2455.1,0.14032953]
[1730679072886,3.66562,2455.3,2455.1,0.14032953]
[1730679073087,3.66568,2455.2,2455.1,0.14032953]
[1730679073293,3.66568,2455.2,2454.9,0.42290753]
[1730679073491,3.66568,2455.2,2455.1,0.14032953]
[1730679073724,3.66568,2455.2,2454.9,0.42290753]
[1730679073895,3.66568,2455.2,2455.0,0.14038331]
[1730679075721,3.66568,2455.2,2455.1,0.13565008]
[1730679075894,3.66568,2455.2,2454.9,0.57349173]
[1730679076219,3.66568,2455.2,2455.0,0.13570386]
[1730679076427,0.7673,2455.4,2455.0,0.13570386]
[1730679076428,3.66583,2455.1,2455.0,0.13570386]
[1730679078085,3.66583,2455.1,2454.8,0.32945589]
[1730679078286,3.66583,2455.1,2454.9,0.13569375]
[1730679078779,3.66571,2455.2,2454.9,0.13569375]
[1730679078995,3.66571,2455.2,2454.9,0.85699696]
[1730679079401,3.66571,2455.2,2454.9,1.01525285]
[1730679080015,3.66555,2455.3,2454.9,1.01525285]
[1730679080228,3.66525,2455.5,2455.1,0.1712]
[1730679080523,3.66525,2455.5,2455.2,0.2169824]
[1730679081492,8.0977,2455.6,2455.2,0.2169824]
[1730679081818,3.66525,2455.5,2455.2,0.2169824]
[1730679084258,3.66541,2455.4,2455.2,0.2169824]
[1730679084417,3.66541,2455.4,2455.2,0.13553241]
[1730679086158,3.66525,2455.5,2455.2,0.13553241]
[1730679086518,7.3306,2455.5,2455.2,0.13553241]
[1730679087255,3.66546,2455.4,2455.2,0.13553241]
[1730679093661,3.66553,2455.3,2455.2,0.13553241]
[1730679095282,4.43553,2455.3,2455.2,0.13553241]
[1730679095585,4.43553,2455.3,2455.1,0.55]
[1730679095788,4.43553,2455.3,2455.2,0.13545848]
[1730679098961,3.66553,2455.3,2455.2,0.13545848]
[1730679105170,4.58179941,2455.3,2455.2,0.13545848]
[1730679105369,5.39539941,2455.3,2455.2,0.13545848]
[1730679105670,5.39539941,2455.3,2454.9,0.15822274]
[1730679105671,3.66574,2455.2,2454.9,0.15822274]
[1730679105864,3.66574,2455.2,2454.8,0.1712]
[1730679105865,3.66583,2455.1,2454.8,0.32942274]
[1730679106593,3.66601,2455.0,2454.8,0.15822274]
[1730679108692,3.66601,2455.0,2454.6,4.69052145]
[1730679108693,3.66643,2454.7,2454.6,0.85287145]
[1730679108892,4.48003,2454.7,2454.6,0.86395325]
[1730679109092,4.48003,2454.7,2454.6,0.55745018]
[1730679109307,4.48003,2454.7,2454.6,0.11955208]
[1730679109811,4.48003,2454.7,2454.5,0.15832516]
[1730679110009,4.48003,2454.7,2454.6,0.11955208]
[1730679111510,4.47837375,2454.7,2454.4,1.21661229]
[1730679111669,4.47837375,2454.7,2454.6,0.11955208]
[1730679111890,4.47837375,2454.7,2454.4,1.21657746]
[1730679112220,4.47837375,2454.7,2454.5,0.11960588]
[1730679114925,3.66643,2454.7,2454.5,0.11960588]
[1730679115845,3.66635,2454.8,2454.5,0.11960588]
[1730679116012,7.33273,2454.8,2454.5,0.11960588]
[1730679116531,3.66621,2454.9,2454.5,2.04796926]
[1730679116829,3.66599,2455.0,2454.6,0.75479693]
[1730679117049,3.66599,2455.0,2454.6,0.55]
[1730679117230,4.47953,2455.1,2454.7,0.11977736]
[1730679117430,4.47926,2455.3,2454.8,0.7228]
[1730679117660,4.47926,2455.3,2454.8,4.38901]
[1730679117932,4.47926,2455.3,2454.9,0.11960924]
[1730679117933,3.66584,2455.1,2454.9,0.11960924]
[1730679118248,3.6657,2455.2,2454.9,0.11960924]
[1730679118412,3.6657,2455.2,2454.9,0.37125897]
[1730679119212,3.66584,2455.1,2454.9,0.37125897]
[1730679119426,3.66584,2455.1,2454.9,0.11960924]
[1730679121573,3.6657,2455.2,2454.9,0.11960924]
[1730679124065,4.47924,2455.3,2454.9,0.11960924]
[1730679124275,3.66598,2455.0,2454.9,0.11960924]
[1730679124449,4.58141349,2455.0,2454.9,0.11960924]
[1730679124652,3.66644,2454.7,2454.5,0.08147429]
[1730679124833,3.66644,2454.7,2454.4,3.25427545]
[1730679125168,3.66644,2454.7,2454.2,0.1728]
[1730679125169,3.66666,2454.6,2454.2,0.1728]
[1730679125382,3.66666,2454.6,2454.2,0.33114163]
[1730679125581,3.66666,2454.6,2454.3,0.08147945]
[1730679125780,4.48004,2454.7,2454.3,0.08147945]
[1730679125963,8.1466,2454.7,2454.3,0.23982108]
[1730679126285,8.14661,2454.7,2454.3,0.23982108]
[1730679126654,4.48004,2454.7,2454.3,3.23982108]
[1730679127021,4.48004,2454.7,2454.3,3.08147945]
[1730679127179,8.14655,2454.7,2454.3,3.08147945]
[1730679127821,4.48004,2454.7,2454.3,3.08147945]
[1730679127983,4.48004,2454.7,2454.3,4.23178171]
[1730679128390,3.66623,2454.9,2454.4,4.38958]
[1730679128823,3.66623,2454.9,2454.4,8.05638]
[1730679129033,3.66623,2454.9,2454.4,4.38958]
[1730679129319,3.6663,2454.8,2454.4,5.32985537]
[1730679129724,3.6663,2454.8,2454.4,1.66307537]
[1730679129887,3.6663,2454.8,2454.5,0.08147305]
[1730679130719,3.6663,2454.8,2454.4,1.82140184]
[1730679131125,3.66623,2454.9,2454.5,0.08147307]
[1730679131424,7.33249,2454.9,2454.5,1.05348579]
[1730679131782,7.33249,2454.9,2454.4,0.7228]
[1730679131783,3.6663,2454.8,2454.4,0.7228]
[1730679132029,3.6663,2454.8,2454.4,0.88113625]
[1730679136594,3.6663,2454.8,2454.5,0.08147325]
[1730679137829,0.7922,2455.0,2454.5,0.08147325]
[1730679137991,3.666,2455.0,2454.6,4.21651]
[1730679138198,3.666,2455.0,2454.7,0.96927033]
[1730679138407,3.666,2455.0,2454.7,1.0507387]
[1730679138619,3.66554,2455.3,2454.8,4.21618]
[1730679138825,3.66554,2455.3,2454.9,0.08146078]
[1730679139028,3.66575,2455.2,2454.8,0.55]
[1730679139231,3.66575,2455.2,2455.0,0.10556218]
[1730679139542,4.04258743,2455.1,2454.9,0.10561597]
[1730679139693,3.66583,2455.1,2454.8,0.55]
[1730679140096,3.66569,2455.2,2454.8,0.631463]
[1730679140798,3.66569,2455.2,2454.8,0.081463]
[1730679142309,3.66558,2455.3,2454.8,0.081463]
[1730679142513,3.66584,2455.1,2454.7,3.92062284]
[1730679142715,3.66584,2455.1,2454.8,0.75870828]
[1730679143609,3.66584,2455.1,2454.8,0.84017134]
[1730679144027,7.33124,2455.3,2454.8,4.50642134]
[1730679144230,3.66558,2455.3,2454.9,0.1728]
[1730679144815,7.3312,2455.3,2454.9,0.1728]
[1730679145011,3.66558,2455.3,2454.9,0.1728]
[1730679145238,3.66558,2455.3,2454.9,0.25425927]
[1730679145414,3.66558,2455.3,2454.9,0.1728]
[1730679146660,7.3312,2455.3,2454.9,0.25425899]
[1730679147025,7.3312,2455.3,2454.9,0.1728]
[1730679147364,3.66558,2455.3,2454.9,0.1728]
[1730679147557,3.66573,2455.2,2454.9,0.1728]
[1730679147916,3.66558,2455.3,2454.9,0.1728]
[1730679147917,3.66558,2455.3,2454.9,0.25425948]
[1730679148472,3.66558,2455.3,2454.9,1.17472762]
[1730679148646,3.66558,2455.3,2455.0,0.09056218]
[1730679149324,7.33121,2455.3,2455.0,0.09056218]
[1730679150258,3.66558,2455.3,2455.0,0.09056218]
[1730679150432,3.66583,2455.1,2455.0,0.09056218]
[1730679150639,3.66555,2455.3,2455.0,0.09056218]
[1730679152269,3.6653,2455.5,2455.4,0.09022268]
[1730679152564,3.6653,2455.5,2455.3,0.09027645]
[1730679152919,3.6653,2455.5,2455.2,0.1728]
[1730679153124,3.6653,2455.5,2455.4,0.09022268]
[1730679153370,1.70934293,2455.7,2455.3,0.09027645]
[1730679153371,3.66518,2455.6,2455.3,0.09027645]
[1730679153660,3.66518,2455.6,2455.4,0.09022268]
[1730679153870,3.66518,2455.6,2455.2,0.1728]
[1730679154034,3.66518,2455.6,2455.2,1.23914092]
[1730679154241,3.66518,2455.6,2455.3,0.09027645]
[1730679154551,3.66526,2455.5,2455.3,0.09027645]
[1730679154747,3.66527,2455.5,2455.2,1.23914092]
[1730679154951,3.66527,2455.5,2455.4,0.09022268]
[1730679155128,3.66527,2455.5,2455.3,0.09027645]
[1730679155324,3.66527,2455.5,2455.4,0.09022268]
[1730679155721,3.66527,2455.5,2455.2,1.23914092]
[1730679156051,3.66527,2455.5,2455.3,0.43657639]
[1730679156357,3.66527,2455.5,2455.3,0.09027645]
[1730679156766,3.66527,2455.5,2455.2,0.1728]
[1730679156926,3.66527,2455.5,2455.4,0.09022268]
[1730679157127,3.66511,2455.6,2455.3,0.09027645]
[1730679157328,7.33028,2455.6,2455.4,0.09022268]
[1730679157551,7.33028,2455.6,2455.2,0.1728]
[1730679157859,3.66511,2455.6,2455.2,1.14563684]
[1730679158037,3.66511,2455.6,2455.3,0.09027645]
[1730679158237,3.66511,2455.6,2455.2,1.14563684]
[1730679158453,3.66511,2455.6,2455.4,0.09022268]
[1730679158651,3.66511,2455.6,2455.2,1.14563684]
[1730679158847,3.66511,2455.6,2455.5,0.09016892]
[1730679159158,3.66511,2455.6,2455.2,0.1728]
[1730679159365,3.66511,2455.6,2455.5,0.09016892]
[1730679159565,3.66511,2455.6,2455.2,0.1728]
[1730679159876,3.66511,2455.6,2455.3,0.09027645]
[1730679160273,3.66511,2455.6,2455.2,0.1728]
[1730679160434,3.66511,2455.6,2455.4,0.08997727]
[1730679160629,3.66511,2455.6,2455.2,0.1728]
[1730679160972,3.66511,2455.6,2455.3,0.09003104]
[1730679161277,3.63478236,2455.6,2455.2,0.1728]
[1730679161562,3.63478236,2455.6,2455.4,0.08997727]
[1730679161731,3.63478236,2455.6,2455.3,0.09003104]
[1730679161943,3.63478236,2455.6,2455.2,0.1728]
[1730679162161,3.63478236,2455.6,2455.4,0.08997727]
[1730679162330,3.63478236,2455.6,2455.3,0.09003104]
[1730679162530,3.63478236,2455.6,2455.5,0.08992351]
[1730679162732,3.63478236,2455.6,2455.4,0.08997727]
[1730679162932,3.63478236,2455.6,2455.5,0.08991678]
[1730679163269,3.63478236,2455.6,2455.2,1.14563684]
[1730679163451,3.63478236,2455.6,2455.5,0.08991006]
[1730679163624,3.63478236,2455.6,2455.3,0.70353153]
[1730679163965,3.63478236,2455.6,2455.4,0.08996383]
[1730679166133,3.76676243,2455.7,2455.4,0.08996383]
[1730679166327,3.66495,2455.7,2455.4,0.08996383]
[1730679166553,3.66482,2455.8,2455.4,0.08996383]
[1730679166755,3.66496,2455.7,2455.4,0.36212399]
[1730679170261,3.66482,2455.8,2455.4,0.36212399]
[1730679170450,3.66482,2455.8,2455.5,0.1728]
[1730679170660,3.66482,2455.8,2455.5,0.26270334]
[1730679171480,3.66482,2455.8,2455.5,1.28701569]
[1730679173779,3.66495,2455.7,2455.5,1.28701569]
[1730679173980,3.66481,2455.8,2455.5,1.28701569]
[1730679174338,3.665,2455.7,2455.5,0.26270334]
[1730679174784,3.66509,2455.6,2455.5,0.08990334]
[1730679174945,3.665,2455.7,2455.5,0.08990334]
[1730679175142,3.66545,2455.4,2455.0,0.1728]
[1730679175462,3.66545,2455.4,2455.0,6.83878]
[1730679175667,3.66535,2455.5,2455.2,3.0]
[1730679175668,3.66526,2455.5,2455.2,3.0]
[1730679175878,3.6654,2455.4,2455.1,1.050479]
[1730679176070,3.66526,2455.5,2455.2,3.0]
[1730679177027,4.42251,2455.3,2454.8,3.83898]
[1730679177301,4.42251,2455.3,2454.9,4.85270099]
[1730679177302,0.7569,2455.3,2454.9,4.85270099]
[1730679178387,4.42245,2455.3,2454.9,4.85270099]
[1730679178563,4.42245,2455.3,2454.9,0.63657099]
[1730679178764,4.42245,2455.3,2454.9,7.38414168]
[1730679179499,0.7569,2455.3,2454.9,7.38414168]
[1730679179662,0.7569,2455.3,2455.0,0.75569417]
[1730679179861,4.42246,2455.3,2455.0,0.75569417]
[1730679181078,3.66576,2455.2,2454.7,5.34016844]
[1730679181280,3.66576,2455.2,2454.6,1.02567145]
[1730679181281,3.76766611,2455.1,2454.6,4.02567145]
[1730679181482,3.76766611,2455.1,2454.7,0.86443723]
[1730679181687,0.7569,2455.0,2454.7,4.54811269]
[1730679181896,0.7569,2455.0,2454.7,4.47118052]
[1730679182575,0.7569,2455.0,2454.7,4.38971271]
[1730679183200,0.7569,2455.0,2454.7,4.47118056]
[1730679183405,8.08844,2455.2,2454.7,9.811389]
[1730679183573,4.42266,2455.2,2454.8,1.3650709]
[1730679183771,3.66585,2455.1,2454.8,1.3650709]
[1730679184083,3.66585,2455.1,2454.8,1.52350294]
[1730679184281,3.66585,2455.1,2454.9,0.08471076]
[1730679189186,0.85873492,2455.2,2454.9,0.08471076]
[1730679189187,3.66571,2455.2,2454.9,0.08471076]
[1730679189390,3.66571,2455.2,2454.9,1.44617867]
[1730679190406,3.66558,2455.3,2454.9,5.28509867]
[1730679190618,3.76741388,2455.3,2454.9,5.28509867]
[1730679190788,3.66558,2455.3,2454.9,5.28509867]
[1730679191468,3.6659,2455.1,2454.9,0.08471076]
[1730679191800,0.7627,2455.0,2454.7,0.15844545]
[1730679192713,4.42846,2455.2,2454.7,3.90628357]
[1730679192870,3.66564,2455.3,2454.9,3.66612]
[1730679193213,3.66564,2455.3,2454.9,5.51277844]
[1730679193568,4.52991776,2455.4,2454.9,5.51277844]
[1730679193764,4.52991776,2455.4,2454.9,1.84665844]
[1730679193969,4.42809,2455.4,2455.0,3.66597]
[1730679194182,0.7627,2455.4,2455.1,0.67298701]
[1730679194414,3.66528,2455.5,2455.1,4.33874701]
[1730679194721,0.7627,2455.6,2455.2,3.83837]
[1730679196117,0.7627,2455.6,2455.3,3.74692038]
[1730679196317,11.02495,2455.7,2455.4,0.39197204]
[1730679198421,3.66495,2455.7,2455.4,0.39197204]
[1730679199007,3.66495,2455.7,2455.3,3.58258304]
[1730679199517,3.66495,2455.7,2455.4,0.07932]
[1730679200498,7.32997,2455.7,2455.4,0.07932]
[1730679200672,3.66495,2455.7,2455.2,3.83846]
[1730679200874,3.66495,2455.7,2455.3,1.06448432]
[1730679202159,3.66495,2455.7,2455.3,4.73000432]
[1730679202454,4.42751,2455.8,2455.3,8.4769013]
[1730679202644,4.52931751,2455.8,2455.3,4.72993432]
[1730679202845,4.52931751,2455.8,2455.4,0.49027343]
[1730679203031,4.52931751,2455.8,2455.5,0.07926624]
[1730679204252,3.66495,2455.7,2455.5,0.07926624]
[1730679205421,3.66495,2455.7,2455.3,4.65056055]
[1730679205621,3.66495,2455.7,2455.1,6.01255545]
[1730679205622,3.66528,2455.5,2455.4,0.07686607]
[1730679205834,3.66528,2455.5,2455.1,3.66571]
[1730679206039,4.43191,2455.4,2455.2,0.07697361]
[1730679206261,4.43191,2455.4,2455.0,0.1728]
[1730679206262,3.66553,2455.3,2455.0,0.33118063]
[1730679206638,3.66553,2455.3,2455.1,0.07469405]
[1730679207985,3.66553,2455.3,2454.9,0.33118063]
[1730679208272,3.66569,2455.2,2454.9,0.15838063]
[1730679208473,3.66569,2455.2,2455.0,0.07474783]
[1730679208474,3.76751195,2455.2,2455.0,0.07474783]
[1730679208943,0.10182195,2455.2,2455.0,0.07474783]
[1730679209140,3.66555,2455.3,2455.0,3.07474783]
[1730679209366,4.43185,2455.4,2455.0,3.0]
[1730679209594,4.43185,2455.4,2455.1,0.07469405]
[1730679209776,4.53367694,2455.4,2455.1,0.07469405]
[1730679211759,4.43156,2455.6,2455.2,0.1728]
[1730679211948,4.53331615,2455.6,2455.2,0.1728]
[1730679212163,4.53331615,2455.6,2455.3,0.0745865]
[1730679212683,4.53331615,2455.6,2455.4,0.07453274]
[1730679212980,0.86821615,2455.6,2455.2,3.83848]
[1730679213280,0.10181377,2455.8,2455.5,3.83803]
[1730679213444,2.47574293,2456.0,2455.5,0.1728]
[1730679213788,0.7664,2456.0,2455.6,3.73936831]
[1730679214082,4.4309,2456.0,2455.6,3.73936831]
[1730679214503,0.7664,2456.0,2455.6,3.73936831]
[1730679214646,0.7664,2456.0,2455.7,0.55860268]
[1730679214841,0.10179808,2456.1,2455.8,0.07422055]
[1730679215153,0.10179808,2456.1,2455.7,5.89731112]
[1730679215354,3.66427,2456.2,2455.9,0.07416681]
[1730679215543,3.76606314,2456.2,2455.8,3.73901055]
[1730679215743,3.76606314,2456.2,2456.0,0.07399583]
[1730679215953,3.76606314,2456.2,2455.7,5.89738112]
[1730679216157,3.76606314,2456.2,2456.1,0.07394209]
[1730679216354,3.76606314,2456.2,2455.7,3.66492]
[1730679216580,3.76606314,2456.2,2456.1,0.07394209]
[1730679216780,4.75665875,2456.2,2455.7,3.66492]
[1730679216983,3.76606314,2456.2,2456.1,0.07386507]
[1730679217192,3.76606314,2456.2,2455.7,3.66492]
[1730679217348,3.76606314,2456.2,2456.1,0.07386507]
[1730679217550,3.76606314,2456.2,2455.7,3.66492]
[1730679217885,0.10179319,2456.2,2455.8,3.66473]
[1730679218090,0.10179319,2456.2,2455.9,0.07396585]
[1730679218384,3.76600319,2456.2,2455.9,0.07396585]
[1730679219088,0.10179319,2456.2,2455.9,0.07396585]
[1730679220688,3.76600319,2456.2,2455.9,0.07396585]
[1730679221322,0.10179319,2456.2,2455.9,0.07396585]
[1730679221681,0.10179319,2456.2,2455.9,0.65161843]
[1730679222518,3.76598319,2456.2,2455.9,0.65161843]
[1730679222720,0.10179319,2456.2,2455.9,0.07396585]
[1730679223028,3.76599319,2456.2,2455.9,0.07396585]
[1730679223931,0.10179319,2456.2,2455.9,0.07396585]
[1730679224582,3.76599319,2456.2,2455.9,0.07396585]
[1730679225820,3.66436,2456.1,2455.9,0.07396585]
[1730679226113,3.66436,2456.1,2455.7,3.66493]
[1730679226417,3.66436,2456.1,2456.0,0.07303482]
[1730679226594,3.66436,2456.1,2455.7,3.66493]
[1730679226800,3.66436,2456.1,2456.0,0.07303482]
[1730679227008,3.66436,2456.1,2455.7,3.66493]
[1730679227209,3.66436,2456.1,2456.0,0.07305156]
[1730679227405,3.66436,2456.1,2455.7,3.66493]
[1730679227620,3.66436,2456.1,2456.0,0.07305156]
[1730679228093,3.66436,2456.1,2455.7,3.66493]
[1730679228299,3.66436,2456.1,2455.8,0.0731624]
[1730679228502,7.32881,2456.1,2455.6,6.83787]
[1730679228812,3.76631352,2456.0,2455.7,0.07321615]
[1730679229485,3.66436,2456.1,2455.7,0.07321615]
[1730679232899,3.66451,2456.0,2455.7,0.07321615]
[1730679233088,3.7663036,2456.0,2455.7,0.07321615]
[1730679234636,4.5901036,2456.0,2455.7,0.07321615]
[1730679235117,4.59010449,2456.0,2455.7,0.07321615]
[1730679235326,4.59010449,2456.0,2455.5,8.33907844]
[1730679235521,4.59010449,2456.0,2455.8,0.0731691]
[1730679235688,4.59010449,2456.0,2455.5,8.33907844]
[1730679235901,4.59010449,2456.0,2455.6,0.0732766]
[1730679236409,4.48831,2456.0,2455.6,0.0732766]
[1730679236998,4.48831,2456.0,2455.6,3.7383466]
[1730679240633,4.48831,2456.0,2455.6,0.0732766]
[1730679241192,0.8238,2455.8,2455.6,0.0732766]
[1730679241506,0.10180573,2455.7,2455.3,3.66552]
[1730679241711,0.10180573,2455.7,2455.4,0.07109033]
[1730679242794,3.76681573,2455.7,2455.4,0.07109033]
[1730679243238,0.10180573,2455.7,2455.3,6.66551]
[1730679243539,0.10180573,2455.7,2455.4,0.07109033]
[1730679244898,4.4886,2455.8,2455.4,4.79395936]
[1730679244899,0.8238,2455.8,2455.4,4.79395936]
[1730679246035,0.9256091,2455.8,2455.4,4.79395936]
[1730679246234,4.5904091,2455.8,2455.4,4.79395936]
[1730679247837,4.4886,2455.8,2455.4,4.79395936]
[1730679249744,4.4886,2455.8,2455.4,1.12858936]
[1730679249901,4.59040914,2455.8,2455.4,1.12858936]
[1730679250965,4.41914,2455.5,2455.4,0.07109033]
[1730679251143,4.52095751,2455.5,2455.4,0.07109033]
[1730679251310,4.52095751,2455.5,2455.0,6.8387]
[1730679251641,4.52095751,2455.5,2455.1,0.0671193]
[1730679252440,3.66546,2455.4,2455.1,0.0671193]
[1730679252643,4.41958,2455.2,2455.1,0.0671193]
[1730679252842,5.23792375,2455.4,2455.1,0.0671193]
[1730679253031,4.41929,2455.4,2455.0,3.66598]
[1730679253225,4.41929,2455.4,2455.2,0.06507672]
[1730679253427,0.10182865,2455.3,2455.1,0.06513049]
[1730679253754,0.10182865,2455.3,2454.9,5.51276844]
[1730679254129,3.76739865,2455.3,2454.9,5.51276844]
[1730679257769,0.10182865,2455.3,2454.9,5.51276844]
[1730679257948,4.41929,2455.4,2454.9,6.51591543]
[1730679258273,8.08481,2455.4,2454.9,6.51591543]
[1730679258478,0.10182882,2455.3,2454.9,6.51591543]
[1730679258684,3.66556,2455.3,2454.9,10.18197543]
[1730679258866,3.66556,2455.3,2454.9,6.51591543]
[1730679259372,3.66556,2455.3,2455.0,0.06059454]
[1730679259571,7.33117,2455.3,2455.0,0.06059454]
[1730679259872,3.6657,2455.2,2455.0,0.06059454]
[1730679260281,3.6657,2455.2,2454.8,3.66627]
[1730679260467,3.76752886,2455.2,2455.1,0.06052066]
[1730679260654,3.76752886,2455.2,2454.8,3.66627]
[1730679260856,3.76752886,2455.2,2455.1,0.06053741]
[1730679261060,3.76752886,2455.2,2454.8,3.66627]
[1730679261255,3.76752886,2455.2,2455.1,0.06053741]
[1730679261567,4.41974,2455.1,2454.8,0.55]
[1730679262139,4.41974,2455.1,2454.8,0.70830396]
[1730679262386,4.41974,2455.1,2454.8,0.55]
[1730679265721,3.66599,2455.0,2454.7,4.67385844]
[1730679265926,3.76782536,2455.0,2454.6,0.55]
[1730679266141,3.66621,2454.9,2454.5,3.1728]
[1730679266342,3.76805032,2454.9,2454.5,3.0]
[1730679266711,3.76805032,2454.9,2454.4,3.66683]
[1730679266917,0.8177,2454.8,2454.4,4.67015599]
[1730679267113,3.76837058,2454.7,2454.3,1.84665844]
[1730679267410,3.76837058,2454.7,2454.3,1.67385844]
[1730679267411,3.66659,2454.6,2454.3,1.67385844]
[1730679267946,3.76828058,2454.7,2454.3,1.67385844]
[1730679268339,3.66661,2454.6,2454.3,1.67385844]
[1730679268652,3.76828058,2454.7,2454.3,1.67385844]
[1730679273659,3.76828058,2454.7,2454.3,5.34085844]
[1730679273956,3.76828058,2454.7,2454.3,6.56509745]
[1730679274162,3.76828058,2454.7,2454.4,0.06102119]
[1730679277242,0.10184058,2454.7,2454.3,8.62592663]
[1730679277564,0.91955204,2454.8,2454.5,1.67385844]
[1730679278063,0.91955204,2454.8,2454.6,0.05903367]
[1730679278275,3.66644,2454.7,2454.6,0.05903367]
[1730679278760,3.66644,2454.7,2454.3,5.34080844]
[1730679278966,3.66644,2454.7,2454.6,0.05903367]
[1730679279163,3.66644,2454.7,2454.3,5.34080844]
[1730679279462,3.66644,2454.7,2454.6,0.05903367]
[1730679279639,3.66644,2454.7,2454.3,5.34080844]
[1730679280130,3.66644,2454.7,2454.4,0.05926862]
[1730679287634,7.333,2454.7,2454.4,0.05926862]
[1730679288035,7.43485225,2454.7,2454.3,1.67385844]
[1730679288235,7.43485225,2454.7,2454.5,0.0573477]
[1730679288433,7.43485225,2454.7,2454.4,0.05740151]
[1730679288671,7.43485225,2454.7,2454.3,1.67385844]
[1730679288848,7.43485225,2454.7,2454.5,0.0573477]
[1730679289173,7.43485225,2454.7,2454.3,1.67385844]
[1730679289174,7.43485225,2454.7,2454.6,0.05732071]
[1730679289556,3.66644,2454.7,2454.3,1.67385844]
[1730679289749,3.66644,2454.7,2454.6,0.05732071]
[1730679289966,3.66644,2454.7,2454.3,1.67385844]
[1730679290161,3.66644,2454.7,2454.6,0.05730395]
[1730679290476,3.66644,2454.7,2454.3,1.67385844]
[1730679290974,3.66644,2454.7,2454.4,0.05741491]
[1730679291753,4.4222,2455.1,2454.6,3.6665]
[1730679292083,4.4222,2455.1,2454.7,1.67385844]
[1730679292084,3.66601,2455.0,2454.7,1.67385844]
[1730679292326,3.66601,2455.0,2454.7,1.73111195]
[1730679292837,4.4222,2455.1,2454.7,1.73111195]
[1730679293072,8.08813,2455.1,2454.7,2.70981715]
[1730679293478,4.4222,2455.1,2454.7,6.37622715]
[1730679293664,3.6659,2455.1,2454.8,0.1728]
[1730679294067,3.6659,2455.1,2454.9,0.05714257]
[1730679294376,3.66584,2455.1,2454.9,0.05714257]
[1730679296597,7.33176,2455.1,2454.7,6.49172364]
[1730679296797,3.66584,2455.1,2455.0,0.05700165]
[1730679296967,3.66584,2455.1,2454.8,0.70417236]
[1730679297177,3.66584,2455.1,2455.0,0.05700165]
[1730679297515,3.66584,2455.1,2454.9,0.05706884]
[1730679297516,3.66598,2455.0,2454.9,0.05706884]
[1730679297685,3.66598,2455.0,2454.7,0.1728]
[1730679297886,3.66598,2455.0,2454.7,1.44579184]
[1730679299311,3.66569,2455.2,2454.7,3.2011177]
[1730679299613,3.66569,2455.2,2454.8,4.21621]
[1730679300371,3.66569,2455.2,2454.7,3.11965028]
[1730679300609,3.666,2455.0,2454.7,3.11965028]
[1730679302115,3.66616,2454.9,2454.5,4.84665844]
[1730679302291,3.66646,2454.7,2454.3,1.02567145]
[1730679302492,4.42276,2454.7,2454.3,7.43716645]
[1730679302814,0.7563,2454.7,2454.4,0.86445192]
[1730679303111,0.7563,2454.7,2454.4,0.23989835]
[1730679303503,0.7563,2454.7,2454.4,3.90670835]
[1730679303722,0.7563,2454.7,2454.4,0.08147716]
[1730679303921,0.7563,2454.7,2454.4,0.70845261]
[1730679304106,4.42253,2454.9,2454.5,1.73107545]
[1730679304309,3.66601,2455.0,2454.7,1.67385844]
[1730679304538,3.66599,2455.0,2454.7,1.67385844]
[1730679304695,4.42221,2455.1,2454.7,1.67385844]
[1730679304696,4.42221,2455.1,2454.8,0.05709918]
[1730679304901,3.66591,2455.1,2454.8,0.05709918]
[1730679305103,8.08756,2455.3,2454.8,3.72335918]
[1730679305312,8.08756,2455.3,2454.8,4.95514769]